fUSD/lending_fUSD_20240409
["ID","MTS","AMOUNT","RATE_DAILY","PERIOD"]
[321922041,1712629773255,-1000.0,0.00019999,2]
[321922042,1712629774517,-1000.0,0.00019999,2]
[321922052,1712629831641,-2299.62465547,0.00019999,2]
[321922053,1712629831652,-6209.85493494,0.0002,2]
[321922054,1712629831661,-178.08,0.00020017,2]
[321922055,1712629831671,-448.04,0.00020067,2]
[321922056,1712629831681,-801.86,0.00020318,2]
[321922057,1712629831691,-499.99,0.00020408,2]
[321922058,1712629831701,-176.91,0.00020408,2]
[321922059,1712629831710,-205.467349,0.00020548,2]
[321922060,1712629831720,-545.5748,0.00020697,2]
[321922061,1712629831729,-698.78,0.00020698,2]
[321922062,1712629831739,-3745.36327175,0.00020698,2]
[321922063,1712629831749,-658.05681709,0.00020698,2]
[321922064,1712629831758,-1261.47773,0.0002079,2]
[321922065,1712629831767,-824.9870683,0.00020796,2]
[321922066,1712629831840,-1233.03668739,0.00020796,2]
[321922067,1712629831851,-99941.52661353,0.00020798,2]
[321922068,1712629831875,-289.99629835,0.00020798,2]
[321922069,1712629831886,-273.63923608,0.00020798,2]
[321922070,1712629831904,-261.62382088,0.00020798,2]
[321922071,1712629831919,-737.05250174,0.00020798,2]
[321922072,1712629831931,-1228.81190287,0.00020798,2]
[321922073,1712629831980,-586.85226721,0.00020798,2]
[321922074,1712629831992,-7072.18920768,0.00020798,2]
[321922077,1712629837880,-1127.38365166,0.00020798,2]
[321922078,1712629837893,-1000.0,0.00020798,2]
[321922079,1712629837904,-309.2166,0.000208,2]
[321922080,1712629837915,-782.94331124,0.000208,2]
[321922081,1712629837925,-421.793,0.000208,2]
[321922082,1712629837935,-471.040911,0.00020849,2]
[321922083,1712629837946,-471.040911,0.00020859,2]
[321922084,1712629837956,-471.040911,0.00020869,2]
[321922085,1712629837966,-471.040911,0.00020879,2]
[321922086,1712629837976,-471.040911,0.00020889,2]
[321922087,1712629837986,-150.82,0.0002089,2]
[321922088,1712629837995,-500.0,0.00020899,2]
[321922089,1712629838004,-500.0,0.00020899,2]
[321922090,1712629838014,-500.0,0.00020899,2]
[321922092,1712629838023,-500.0,0.00020899,2]
[321922094,1712629838033,-500.0,0.00020899,2]
[321922096,1712629838042,-500.0,0.00020899,2]
[321922098,1712629838051,-500.0,0.00020899,2]
[321922100,1712629838061,-500.0,0.00020899,2]
[321922102,1712629838070,-500.0,0.00020899,2]
[321922105,1712629838079,-500.0,0.00020899,2]
[321922107,1712629838088,-500.0,0.00020899,2]
[321922109,1712629838097,-500.0,0.00020899,2]
[321922111,1712629838106,-500.0,0.00020899,2]
[321922113,1712629838115,-574.88970022,0.00020899,2]
[321922115,1712629838124,-500.0,0.00020899,2]
[321922117,1712629838133,-500.0,0.00020899,2]
[321922119,1712629838144,-500.0,0.00020899,2]
[321922120,1712629838152,-500.0,0.00020899,2]
[321922121,1712629838164,-500.0,0.00020899,2]
[321922122,1712629838173,-500.0,0.00020899,2]
[321922123,1712629838183,-500.0,0.00020899,2]
[321922124,1712629838192,-189324.10320085,0.000209,2]
[321922125,1712629838201,-8495.66086854,0.000209,2]
[321922126,1712629838213,-13225.9733736,0.000209,2]
[321922128,1712629838224,-262.4032561,0.000209,2]
[321922130,1712629838235,-1373.3856564,0.000209,2]
[321922148,1712629838389,-4821.83000002,0.0002,2]
[321922150,1712629838403,-272.86,0.0002,2]
[321922312,1712629839982,-433.05060068,0.0002,2]
[321922314,1712629839993,-1068.98839885,0.0002,2]
[321922316,1712629840005,-2702.56010022,0.0002,2]
[321922387,1712629842906,-638.86027003,0.0002,2]
[321922391,1712629846179,-743.55,0.00019732,2]
[321922392,1712629846188,-5135.4549,0.0002,2]
[321922498,1712629889691,760.0,0.000297,120]
[321922499,1712630028055,150.53,0.00024329,15]
[321922500,1712630475197,1977.0,0.00025,10]
[321922501,1712630535155,150.53,0.00024329,15]
[321922541,1712630951977,769.58,0.00017844,2]
[321922562,1712631023560,2690.89621758,0.00013383,2]
[321922574,1712631031845,-216.08179167,0.00019824,2]
[321922575,1712631031854,-441.57,0.00019825,2]
[321922576,1712631031863,-451.24,0.00019881,2]
[321922577,1712631031873,-204.18,0.00019881,2]
[321922578,1712631031882,-3655.15,0.00019889,2]
[321922579,1712631031892,-159.72523597,0.00019898,2]
[321922580,1712631031901,-158.13016832,0.00019898,2]
[321922581,1712631031910,-178.08,0.00019914,2]
[321922582,1712631031919,-558.43,0.00019939,2]
[321922583,1712631031929,-150.0,0.00019996,2]
[321922584,1712631031938,-1183.49583524,0.00019997,2]
[321922585,1712631031951,-684.71908266,0.00019997,2]
[321922586,1712631031995,-421.48717941,0.00019997,2]
[321922587,1712631032004,-72.19797059,0.00019998,2]
[321922588,1712631032045,-674.38234436,0.00019998,2]
[321922589,1712631032056,-4819.298006,0.00019998,2]
[321922590,1712631032066,-1037.4642031,0.00019999,2]
[321922591,1712631032074,-11579.94802328,0.00019999,2]
[321922592,1712631032088,-715.29,0.00019999,2]
[321922593,1712631032108,-463.05,0.00019999,2]
[321922594,1712631032149,-312.48,0.00019999,2]
[321922619,1712631038196,-3588.30408695,0.00019999,2]
[321922620,1712631038207,-544.17950354,0.00019999,2]
[321922623,1712631038383,-275.96458678,0.00019999,2]
[321922630,1712631039811,-1424.40055823,0.00019999,2]
[321922661,1712631040116,-3451.83740653,0.00019999,2]
[321922662,1712631041655,150.53,0.00024329,15]
[321922664,1712631042869,-3598.66842012,0.00019999,2]
[321922665,1712631042878,-27433.3246724,0.0002,2]
[321922666,1712631042890,-1199.33857973,0.0002,2]
[321922667,1712631043194,-2477.06821441,0.0002,2]
[321922668,1712631043206,-1869.72010699,0.0002,2]
[321922669,1712631043249,-4718.91240517,0.0002,2]
[321922758,1712631045857,-272.78241923,0.0002,2]
[321922759,1712631045909,-7669.02910796,0.0002,2]
[321922760,1712631046032,-28.22238378,0.0002,2]
[321922904,1712631052066,867.17902894,0.00013383,2]
[321922905,1712631061943,1411.65956719,0.00013383,2]
[321922906,1712631067956,3609.65704915,0.00013383,2]
[321922907,1712631071357,370.0191142,0.00013383,2]
[321922908,1712631074032,305.05192894,0.00013383,2]
[321922909,1712631080045,11686.01754748,0.00013383,2]
[321922910,1712631101448,7534.21338314,0.00013383,2]
[321922911,1712631110249,1376.51513976,0.00013383,2]
[321922912,1712631125602,622.74613984,0.00013383,2]
[321922913,1712631141300,2572.65576616,0.00012,2]
[321922914,1712631147536,1973.409367,0.00015,2]
[321922915,1712631269399,12382.91975783,0.00015,2]
[321922917,1712631273849,208.32966445,0.0001,2]
[321922918,1712631398040,3367.15032834,0.00015,2]
[321922919,1712631398066,13227.57775543,0.00015,2]
[321922920,1712631412267,4275.02908991,0.0001,2]
[321922921,1712631418635,427.89087441,0.00015,2]
[321922922,1712631419585,4245.87260802,0.00015,2]
[321922923,1712631422728,288.67288883,0.00015,2]
[321922924,1712631423472,955.3495722,0.00015,2]
[321922925,1712631427600,411.54141854,0.00015,2]
[321922926,1712631427903,1092.56298191,0.00015,2]
[321922927,1712631428253,409.32407152,0.00015,2]
[321922928,1712631430134,951.63079177,0.0001425,2]
[321922929,1712631430752,266.54892821,0.00015,2]
[321922930,1712631433507,364.93561022,0.00015,2]
[321922931,1712631435812,3682.22884545,0.00015,2]
[321922932,1712631440184,388.65615432,0.00015,2]
[321922933,1712631449351,2008.75316499,0.00012,2]
[321922934,1712631450711,343.35633431,0.00015,2]
[321922935,1712631451333,364.93561022,0.00015,2]
[321922936,1712631453876,951.63079177,0.0001425,2]
[321922937,1712631454731,179.29690687,0.00015,2]
[321922938,1712631464675,467.246173,0.00015,2]
[321922939,1712631467348,279.62842014,0.00015,2]
[321922940,1712631470743,333.81689183,0.00015,2]
[321922941,1712631471609,323.26772445,0.00015,2]
[321922942,1712631473627,360.26632485,0.00015,2]
[321922943,1712631473879,951.63079177,0.0001425,2]
[321922944,1712631477673,7406.87631033,0.00015,2]
[321922945,1712631481466,940.88907787,0.00015,2]
[321922946,1712631484671,342.94349769,0.00015,2]
[321922947,1712631487914,350.47791126,0.00015,2]
[321922948,1712631493889,278.93549459,0.0001425,2]
[321922949,1712631499664,938.91671041,0.00015,2]
[321922950,1712631588339,877.91,0.00017624,2]
[321922951,1712631591539,177.85,0.00015595,2]
[321922952,1712631606277,150.53,0.00024329,15]
[321922953,1712631670477,434.28067952,0.00017982,2]
[321922954,1712631681162,171.45,0.00016712,2]
[321922957,1712632138795,193.8,0.0001529,2]
[321922964,1712632167124,150.53,0.00024329,15]
[321923015,1712632232049,-216.08179167,0.00018081,2]
[321923016,1712632232058,-164.62697852,0.00018704,2]
[321923017,1712632232068,-161.11946746,0.00018804,2]
[321923018,1712632232077,-156.83066497,0.00018808,2]
[321923019,1712632232086,-469.599401,0.00019051,2]
[321923020,1712632232095,-589.87,0.00019147,2]
[321923021,1712632232104,-453.03,0.00019169,2]
[321923022,1712632232114,-258.99001207,0.00019178,2]
[321923023,1712632232123,-338.85,0.00019271,2]
[321923024,1712632232135,-2325.78,0.00019271,2]
[321923025,1712632232144,-499.99,0.00019271,2]
[321923026,1712632232153,-11180.48612361,0.00019284,2]
[321923027,1712632232194,-174.54387639,0.00019284,2]
[321923028,1712632232203,-353.26,0.000193,2]
[321923029,1712632232213,-200.0,0.00019329,2]
[321923030,1712632232222,-8242.84,0.00019339,2]
[321923031,1712632232231,-175.38,0.00019558,2]
[321923032,1712632232241,-541.9,0.00019726,2]
[321923033,1712632232250,-150.0,0.00019758,2]
[321923034,1712632232259,-170.96,0.00019858,2]
[321923035,1712632232269,-646.74,0.00019876,2]
[321923036,1712632232279,-877.91,0.00019888,2]
[321923037,1712632232289,-12408.03867483,0.00019999,2]
[321923038,1712632232299,-19257.99784053,0.0002,2]
[321923039,1712632232309,-1976.55162839,0.0002,2]
[321923040,1712632232318,-5000.0,0.0002,2]
[321923041,1712632232327,-1100.16613,0.0002,2]
[321923042,1712632232337,-218.53502496,0.00020024,4]
[321923043,1712632232346,-209.610058,0.00020057,2]
[321923044,1712632232356,-6209.85493494,0.00020213,2]
[321923045,1712632232365,-7809.73568953,0.00020214,2]
[321923046,1712632232374,-658.05681709,0.00020224,2]
[321923047,1712632232383,-636.06924127,0.00020787,2]
[321923048,1712632232393,-2161.60792765,0.00020788,2]
[321923049,1712632232402,-1201.4754,0.00020797,2]
[321923050,1712632232411,-1588.932,0.00020798,2]
[321923051,1712632232421,-1242.17106266,0.00020799,2]
[321923052,1712632232430,-3800.23856536,0.00020799,2]
[321923053,1712632232439,-26777.43592139,0.000208,2]
[321923058,1712632232552,-1854.93193671,0.000208,2]
[321923063,1712632232599,-623.17277901,0.000208,2]
[321923065,1712632232610,-2786.22048829,0.000208,2]
[321923069,1712632232638,-21191.71882175,0.000208,2]
[321923072,1712632232653,-5575.37445285,0.000208,2]
[321923074,1712632232663,-455.582,0.000208,2]
[321923076,1712632232672,-1000.0,0.000208,2]
[321923078,1712632232681,-153.75,0.0002089,2]
[321923080,1712632232690,-1092.24206694,0.00020898,2]
[321923088,1712632237989,-13839.57006866,0.00020898,2]
[321923090,1712632238003,-642.43298412,0.00020898,2]
[321923091,1712632238013,-3575.7380582,0.00020899,2]
[321923093,1712632238025,-500.0,0.00020899,2]
[321923094,1712632238037,-500.0,0.00020899,2]
[321923097,1712632238049,-500.0,0.00020899,2]
[321923099,1712632238062,-34.17759482,0.00020899,2]
[321923116,1712632238824,-465.82240518,0.00020899,2]
[321923117,1712632238835,-370.0042348,0.00020899,2]
[321923118,1712632238943,-129.9957652,0.00020899,2]
[321923119,1712632238952,-500.0,0.00020899,2]
[321923120,1712632238962,-500.0,0.00020899,2]
[321923121,1712632238971,-500.0,0.00020899,2]
[321923122,1712632238981,-203.50398108,0.00020899,2]
[321923123,1712632239008,-296.49601892,0.00020899,2]
[321923124,1712632239018,-242.50781252,0.00020899,2]
[321923125,1712632240126,-257.49218748,0.00020899,2]
[321923126,1712632240136,-275.748897,0.00020899,2]
[321923127,1712632240146,-500.0,0.00020899,2]
[321923128,1712632240156,-500.0,0.00020899,2]
[321923129,1712632240166,-97.5847315,0.00020899,2]
[321923130,1712632240178,-402.4152685,0.00020899,2]
[321923131,1712632240187,-500.0,0.00020899,2]
[321923132,1712632240196,-24.2747315,0.00020899,2]
[321923133,1712632240207,-475.7252685,0.00020899,2]
[321923134,1712632240217,-481.74007302,0.00020899,2]
[321923135,1712632240228,-114.80465848,0.000209,2]
[321923138,1712632243009,-250.6449,0.000208,2]
[321923139,1712632243020,-2009.45813652,0.000209,2]
[321923140,1712632243031,-10915.55838375,0.000209,2]
[321923141,1712632243043,-1202.39261956,0.000209,2]
[321923142,1712632243057,-645.4,0.000209,2]
[321923143,1712632243069,-4323.67141818,0.000209,2]
[321923144,1712632243083,-4780.95434616,0.000209,2]
[321923145,1712632243095,-16326.20134553,0.000209,2]
[321923146,1712632243556,-5469.85615006,0.000209,2]
[321923148,1712632247234,-507.57744394,0.000209,2]
[321923149,1712632247265,-49368.51077602,0.000209,2]
[321923150,1712632247275,-3701.00419442,0.000209,2]
[321923151,1712632247285,-158.87549251,0.000209,2]
[321923152,1712632247295,-7500.0,0.000209,2]
[321923153,1712632247306,-1280.33130679,0.000209,2]
[321923154,1712632247315,-294.9048016,0.000209,2]
[321923155,1712632247324,-3320.35915226,0.000209,2]
[321923156,1712632247335,-311.84201748,0.000209,3]
[321923157,1712632247344,-315.28151223,0.000209,2]
[321923158,1712632247353,-313.040911,0.00020927,2]
[321923159,1712632247363,-471.040911,0.00020937,2]
[321923160,1712632247371,-471.040911,0.00020947,2]
[321923161,1712632247381,-471.040911,0.00020957,2]
[321923162,1712632247390,-471.040911,0.00020967,2]
[321923163,1712632247399,-471.040911,0.00020977,2]
[321923164,1712632247408,-471.040911,0.00020987,2]
[321923165,1712632247418,-153.75,0.0002099,2]
[321923166,1712632247428,-153.75,0.0002099,2]
[321923167,1712632247440,-153.75,0.0002099,2]
[321923168,1712632247451,-153.75,0.0002099,2]
[321923169,1712632247460,-500.0,0.00020998,2]
[321923170,1712632247470,-855.04167338,0.00020998,2]
[321923171,1712632247480,-343.50556549,0.00020998,2]
[321923172,1712632247492,-225.17264053,0.00020998,2]
[321923173,1712632247502,-27.42500668,0.00020998,2]
[321923174,1712632247574,-1737.33870597,0.00020998,2]
[321923175,1712632247585,-532.65206382,0.00020998,2]
[321923176,1712632247594,-209.62966052,0.00020999,2]
[321923177,1712632247605,-1322.22344996,0.00020999,2]
[321923178,1712632247615,-1611.8425957,0.00021,2]
[321923179,1712632247626,-63547.69585163,0.00021,2]
[321923180,1712632274681,416.35389969,0.00024,15]
[321923181,1712632276141,-600.0,0.00018484,2]
[321923182,1712632644343,150.53,0.00024329,15]
[321923183,1712632794107,809.27,0.00017905,2]
[321923188,1712633293870,-216.08179167,0.00018483,2]
[321923189,1712633293889,-8000.0,0.00018484,2]
[321923190,1712633293908,-158.6251042,0.0001964,2]
[321923191,1712633293927,-178.92,0.00019702,2]
[321923192,1712633293945,-323.47,0.00019707,2]
[321923193,1712633293965,-169.42,0.00019721,2]
[321923194,1712633293984,-150.0,0.0001974,2]
[321923195,1712633294003,-461.47,0.00019766,2]
[321923196,1712633294022,-300.0,0.00019782,2]
[321923197,1712633294041,-1000.0,0.00019783,2]
[321923198,1712633294059,-15599.18,0.00019783,2]
[321923199,1712633294080,-1647.12635699,0.0002,2]
[321923200,1712633294098,-6209.85493494,0.0002,2]
[321923201,1712633294123,-150.7,0.00020073,2]
[321923202,1712633294145,-499.99,0.00020087,2]
[321923203,1712633294167,-275.92,0.00020098,2]
[321923204,1712633294190,-259.2418122,0.00020169,2]
[321923242,1712633412091,150.53,0.00024329,15]
[321923255,1712633432395,-216.08179167,0.00020166,2]
[321923256,1712633432405,-549.85575697,0.00020166,2]
[321923257,1712633432440,-1097.27060002,0.00020166,2]
[321923258,1712633432453,-550.0281878,0.00020169,2]
[321923259,1712633432463,-167.0,0.00020333,2]
[321923260,1712633432472,-150.0,0.0002048,2]
[321923261,1712633432482,-1268.54918271,0.00020481,2]
[321923262,1712633432492,-268.284157,0.00020548,2]
[321923263,1712633432501,-543.87,0.000207,2]
[321923264,1712633432511,-1268.54918271,0.00020726,2]
[321923265,1712633432521,-916.80511,0.0002079,2]
[321923266,1712633432530,-1000.0,0.00020831,2]
[321923267,1712633432540,-567.964959,0.00020831,2]
[321923268,1712633432549,-500.0,0.00020831,2]
[321923269,1712633432645,-500.0,0.00020832,2]
[321923270,1712633432654,-200.0,0.00020832,2]
[321923271,1712633432664,-1000.0,0.00020832,2]
[321923272,1712633432673,-1000.0,0.00020832,2]
[321923273,1712633432682,-500.0,0.00020832,2]
[321923274,1712633432691,-500.0,0.00020832,2]
[321923275,1712633432702,-500.0,0.00020832,2]
[321923276,1712633432712,-200.0,0.00020832,2]
[321923277,1712633432721,-500.0,0.00020895,2]
[321923278,1712633432730,-500.0,0.00020895,2]
[321923279,1712633432740,-500.0,0.00020895,2]
[321923280,1712633432749,-500.0,0.00020895,2]
[321923281,1712633432758,-407.72362076,0.00020895,2]
[321923282,1712633432788,-92.27637924,0.00020895,2]
[321923283,1712633432798,-326.7827,0.00020895,2]
[321923284,1712633432806,-296.53985751,0.00020895,2]
[321923287,1712633438207,-3153.4467728,0.00020165,2]
[321923288,1712633438219,-3056.40816214,0.00020165,2]
[321923289,1712633438228,-703.46014249,0.00020895,2]
[321923290,1712633438238,-1000.0,0.00020895,2]
[321923291,1712633438248,-60.92169534,0.00020895,2]
[321923292,1712633438259,-939.07830466,0.00020895,2]
[321923293,1712633438269,-1000.0,0.00020895,2]
[321923294,1712633438279,-1000.0,0.00020895,2]
[321923295,1712633438288,-1000.0,0.00020895,2]
[321923296,1712633438298,-1000.0,0.00020895,2]
[321923297,1712633438307,-1000.0,0.00020895,2]
[321923298,1712633438317,-1000.0,0.00020895,2]
[321923299,1712633438326,-1000.0,0.00020895,2]
[321923300,1712633438336,-1000.0,0.00020895,2]
[321923301,1712633438346,-1000.0,0.00020895,2]
[321923302,1712633438355,-1000.0,0.00020895,2]
[321923303,1712633438365,-1000.0,0.00020895,2]
[321923304,1712633438375,-1000.0,0.00020895,2]
[321923305,1712633438384,-1000.0,0.00020895,2]
[321923306,1712633438393,-1000.0,0.00020895,2]
[321923307,1712633438404,-1000.0,0.00020895,2]
[321923308,1712633438413,-5.85875433,0.00020895,2]
[321923309,1712633438449,-994.14124567,0.00020895,2]
[321923310,1712633438458,-384.9683374,0.00020895,2]
[321923463,1712633440264,-615.0316626,0.00020895,2]
[321923465,1712633440274,-1000.0,0.00020895,2]
[321923467,1712633440284,-1000.0,0.00020895,2]
[321923469,1712633440294,-1000.0,0.00020895,2]
[321923471,1712633440303,-1000.0,0.00020895,2]
[321923473,1712633440312,-1000.0,0.00020895,2]
[321923475,1712633440322,-1000.0,0.00020895,2]
[321923477,1712633440331,-1000.0,0.00020895,2]
[321923479,1712633440340,-1000.0,0.00020895,2]
[321923481,1712633440349,-1000.0,0.00020895,2]
[321923483,1712633440359,-1000.0,0.00020895,2]
[321923485,1712633440368,-1000.0,0.00020895,2]
[321923487,1712633440377,-1000.0,0.00020895,2]
[321923489,1712633440386,-1000.0,0.00020895,2]
[321923491,1712633440395,-1000.0,0.00020895,2]
[321923493,1712633440404,-1000.0,0.00020895,2]
[321923495,1712633440414,-1000.0,0.00020895,2]
[321923497,1712633440423,-1000.0,0.00020895,2]
[321923499,1712633440433,-1000.0,0.00020895,2]
[321923501,1712633440441,-1000.0,0.00020895,2]
[321923503,1712633440451,-1000.0,0.00020895,2]
[321923505,1712633440461,-155.4197,0.00020895,2]
[321923507,1712633440471,-500.0,0.00020895,2]
[321923509,1712633440480,-500.0,0.00020895,2]
[321923511,1712633440489,-500.0,0.00020895,2]
[321923513,1712633440499,-500.0,0.00020895,2]
[321923515,1712633440508,-500.0,0.00020895,2]
[321923517,1712633440517,-503.421,0.00020895,2]
[321923519,1712633440526,-208.07346095,0.00020899,2]
[321923521,1712633440536,-527.2397,0.000209,2]
[321923523,1712633440546,-910.8023,0.000209,2]
[321923525,1712633440556,-3392.5871782,0.000209,2]
[321923527,1712633440565,-2734.8105,0.000209,2]
[321923529,1712633440574,-7500.0,0.000209,2]
[321923531,1712633440584,-3667.23724518,0.000209,2]
[321923533,1712633440593,-1120.28989345,0.000209,2]
[321923535,1712633440602,-158.8754925,0.000209,2]
[321923537,1712633440612,-3062.37307328,0.000209,2]
[321923539,1712633440621,-315.2815122,0.000209,2]
[321923541,1712633440631,-1483.39236039,0.000209,2]
[321923543,1712633440640,-249.47361396,0.000209,3]
[321923545,1712633440649,-196.60320106,0.000209,2]
[321923547,1712633440658,-314.040912,0.00020938,2]
[321923549,1712633440667,-314.040912,0.00020948,2]
[321923551,1712633440677,-314.040912,0.00020958,2]
[321923553,1712633440686,-471.040912,0.00020968,2]
[321923555,1712633440697,-471.040912,0.00020978,2]
[321923557,1712633440706,-500.0,0.00020979,2]
[321923559,1712633440715,-417.49877445,0.00020979,2]
[321923561,1712633440724,-17268.23806585,0.0002098,2]
[321923584,1712633441057,-35692.53966861,0.0002098,2]
[321923585,1712633441093,-370.925,0.0002098,2]
[321923586,1712633441104,-1286.52489499,0.0002098,2]
[321923587,1712633441181,-3371.76921599,0.0002098,2]
[321923591,1712633443241,-2054.28727284,0.0002098,2]
[321923592,1712633443295,-1855.58055642,0.0002098,2]
[321923593,1712633443558,-21058.1397,0.0002098,2]
[321923594,1712633443974,-6826.12877378,0.0002098,2]
[321923595,1712633446266,-166.7090547,0.000209,2]
[321923596,1712633446276,-858.15283199,0.00020979,2]
[321923597,1712633446285,-8003.53811331,0.0002098,2]
[321923598,1712633446494,-2005.63075243,0.0002098,2]
[321923599,1712633448650,357.17789768,0.00016782,2]
[321923600,1712633877503,150.53,0.00024329,15]
[321923601,1712634412039,150.53,0.00024329,15]
[321923620,1712634632432,-392.9805,0.00018044,2]
[321923621,1712634632486,-388.1695,0.00018044,2]
[321923622,1712634632496,-212.60917162,0.00019855,2]
[321923623,1712634632506,-299.22132838,0.00019936,2]
[321923624,1712634632606,-75.13867162,0.00019936,2]
[321923625,1712634632616,-216.08179167,0.00019954,2]
[321923626,1712634632627,-169.42,0.00019955,2]
[321923627,1712634632636,-1000.0,0.00019982,2]
[321923628,1712634632646,-540.83230062,0.0002,2]
[321923672,1712634639197,-317.32053137,0.0002,2]
[321923673,1712634639207,-685.50061897,0.00020308,2]
[321923674,1712634639218,-95.64938103,0.00020308,2]
[321923676,1712634639228,-1895.51354782,0.00020668,2]
[321923678,1712634639237,-5.65127737,0.00020668,2]
[321923679,1712634639248,-717.99897742,0.00020668,2]
[321923680,1712634639259,-1341.86974521,0.00020668,2]
[321923681,1712634639269,-150.0,0.00020733,2]
[321923682,1712634639279,-764.00426,0.0002077,2]
[321923683,1712634639288,-150.0,0.00020831,2]
[321923684,1712634639297,-211.556015,0.00020832,2]
[321923685,1712634639307,-1000.0,0.00020832,2]
[321923686,1712634639316,-500.0,0.00020832,2]
[321923687,1712634639325,-29.02275618,0.00020887,2]
[321923688,1712634639340,-120.97724382,0.00020887,2]
[321923689,1712634639350,-332.45678237,0.00020888,2]
[321923692,1712634640418,-1351.72845531,0.00020888,2]
[321923693,1712634640430,-1616.328283,0.00020888,2]
[321923694,1712634640439,-410.35389113,0.00020888,2]
[321923695,1712634642868,-515.1,0.0002088,2]
[321923696,1712634642880,-490.18022914,0.0002088,2]
[321923697,1712634642891,-435.72617086,0.0002088,2]
[321923698,1712634642901,-4227.37739633,0.00020888,2]
[321923699,1712634642911,-1724.47814555,0.000209,2]
[321923700,1712634642973,-778.48118376,0.000209,2]
[321923701,1712634642984,-355.72425126,0.000209,2]
[321923702,1712634643031,-425.66564549,0.000209,2]
[321923703,1712634643041,-162.01,0.000209,2]
[321923704,1712634643050,-639.26745599,0.000209,2]
[321923710,1712634643727,-3720.0,0.000209,2]
[321923711,1712634643845,-1199.96576911,0.000209,2]
[321923712,1712634643858,-601.12224155,0.000209,2]
[321923713,1712634643869,-5992.67639874,0.000209,2]
[321923721,1712634646592,-433.53698549,0.000209,2]
[321923722,1712634646994,-286.694,0.000209,2]
[321923725,1712634672552,171.27705315,0.000154,2]
[321923726,1712634679877,500.0,0.0002,120]
[321923727,1712634842634,210.0000217,0.00016,12]
[321923728,1712634847283,202.15714035,0.00023561,10]
[321923729,1712635004882,150.53,0.00024329,15]
[321923730,1712635135768,788.21,0.00017695,2]
[321923731,1712635160091,864.68528721,0.00017695,2]
[321923732,1712635163965,1468.73862598,0.00017695,2]
[321923733,1712635165972,42509.60567511,0.00017695,2]
[321923734,1712635166435,20130.85716187,0.00017695,2]
[321923735,1712635170119,19636.48974114,0.00017695,2]
[321923736,1712635176064,864.68528721,0.00017695,2]
[321923737,1712635181945,1204.29124263,0.00017695,2]
[321923738,1712635183967,27845.58085765,0.00017695,2]
[321923739,1712635184435,20130.85716187,0.00017695,2]
[321923740,1712635186148,17670.34987003,0.00017695,2]
[321923741,1712635192067,998.34835911,0.00017695,2]
[321923742,1712635199575,-150.72257132,0.00018679,2]
[321923743,1712635199598,-401.1194904,0.00018778,2]
[321923744,1712635199620,-2354.77756212,0.00018778,2]
[321923745,1712635199644,-216.08179167,0.00018779,2]
[321923746,1712635199666,-14694.2264678,0.00018779,2]
[321923747,1712635199688,-156.06202502,0.0001888,2]
[321923748,1712635206453,20130.85716187,0.00017695,2]
[321923749,1712635288952,20130.85716187,0.00017695,2]
[321923750,1712635304959,15334.16250809,0.00017695,2]
[321923751,1712635305810,171.59,0.00015509,2]
[321923755,1712635643468,748.79,0.00017264,2]
[321923758,1712635654250,150.53,0.00024329,15]
[321923759,1712635783250,159.1,0.00015287,2]
[321923761,1712635829518,20130.85716187,0.00015287,2]
[321923771,1712635831798,-155.0,0.00018052,2]
[321923772,1712635831807,-155.0,0.00018053,2]
[321923773,1712635831817,-620.54602664,0.00018054,2]
[321923774,1712635831828,-216.08179167,0.00018054,2]